[Event "Titled Tuesday Blitz July 26 Early 2022"]
[White "Odegov, Artem"]
[Black "Djokic, Mihailo"]
[WhiteFideId "34183644"]
[BlackFideId "976440"]
[WhiteElo "2286"]
[BlackElo "2246"]
[Result "1-0"]
[Round "06"]
[TimeControl "180+1"]
[Date "2022.07.27"]
[WhiteClock "0:00:18"]
[BlackClock "0:00:01"]

1. d4 {[%clk 0:03:00]}  Nf6 {[%clk 0:02:59]} 2. c4 {[%clk 0:03:00]}  g6 {[%clk 0:02:57]} 3. Nc3 {[%clk 0:03:00]}  Bg7 {[%clk 0:02:47]} 4. e4 {[%clk 0:02:59]}  O-O {[%clk 0:02:41]} 5. h3 {[%clk 0:02:59]}  d6 {[%clk 0:02:35]} 6. Be3 {[%clk 0:02:58]}  e5 {[%clk 0:02:26]} 7. d5 {[%clk 0:02:58]}  Nh5 {[%clk 0:02:23]} 8. g3 {[%clk 0:02:50]}  Qe8 {[%clk 0:02:17]} 9. Be2 {[%clk 0:02:48]}  Na6 {[%clk 0:01:41]} 10. Bxh5 {[%clk 0:02:31]}  gxh5 {[%clk 0:01:41]} 11. Qxh5 {[%clk 0:02:32]}  f5 {[%clk 0:01:40]} 12. Qxe8 {[%clk 0:02:30]}  Rxe8 {[%clk 0:01:40]} 13. Nf3 {[%clk 0:02:19]}  Rf8 {[%clk 0:01:11]} 14. O-O-O {[%clk 0:02:04]}  Nb4 {[%clk 0:00:54]} 15. Ng5 {[%clk 0:01:33]}  f4 {[%clk 0:00:41]} 16. gxf4 {[%clk 0:01:31]}  exf4 {[%clk 0:00:41]} 17. Bd4 {[%clk 0:01:31]}  Bh6 {[%clk 0:00:30]} 18. Rhg1 {[%clk 0:01:24]}  f3 {[%clk 0:00:26]} 19. Kb1 {[%clk 0:01:08]}  Bxg5 {[%clk 0:00:17]} 20. Rxg5+ {[%clk 0:01:09]}  Kf7 {[%clk 0:00:17]} 21. Nb5 {[%clk 0:01:06]}  Na6 {[%clk 0:00:14]} 22. Rdg1 {[%clk 0:00:52]}  Ke7 {[%clk 0:00:10]} 23. Rh5 {[%clk 0:00:49]}  Rf7 {[%clk 0:00:08]} 24. Rg8 {[%clk 0:00:49]}  b6 {[%clk 0:00:06]} 25. Be3 {[%clk 0:00:18]}  Bb7 {[%clk 0:00:03]} 26. Rxa8 {[%clk 0:00:19]}  Bxa8 {[%clk 0:00:04]} 27. a3 {[%clk 0:00:19]}  Kd7 {[%clk 0:00:02]} 28. Nxa7 {[%clk 0:00:19]}  Bb7 {[%clk 0:00:02]} 29. Nb5 {[%clk 0:00:19]}  Re7 {[%clk 0:00:01]} 30. Rh4 {[%clk 0:00:18]} 1-0


[Site "https://www.chess.com"]

[Event "Titled Tuesday Blitz July 26 Early 2022"]
[White "Oparin, Grigoriy"]
[Black "Wagner, Dennis"]
[WhiteFideId "24125890"]
[BlackFideId "24650684"]
[WhiteElo "2639"]
[BlackElo "2355"]
[Result "0-1"]
[Round "06"]
[TimeControl "180+1"]
[Date "2022.07.26"]
[WhiteClock "0:00:13"]
[BlackClock "0:00:11"]

1. c4 {[%clk 0:03:00]}  Nf6 {[%clk 0:02:58]} 2. Nc3 {[%clk 0:03:01]}  c5 {[%clk 0:02:58]} 3. Nf3 {[%clk 0:03:01]}  e6 {[%clk 0:02:57]} 4. d4 {[%clk 0:03:00]}  cxd4 {[%clk 0:02:57]} 5. Nxd4 {[%clk 0:03:01]}  d5 {[%clk 0:02:58]} 6. cxd5 {[%clk 0:02:59]}  Nxd5 {[%clk 0:02:59]} 7. Bd2 {[%clk 0:03:00]}  Bc5 {[%clk 0:02:58]} 8. Nb3 {[%clk 0:02:55]}  Bb6 {[%clk 0:02:58]} 9. e3 {[%clk 0:02:49]}  O-O {[%clk 0:02:55]} 10. Nxd5 {[%clk 0:02:49]}  Qxd5 {[%clk 0:02:55]} 11. Bc3 {[%clk 0:02:49]}  Rd8 {[%clk 0:02:24]} 12. Qxd5 {[%clk 0:02:47]}  Rxd5 {[%clk 0:02:23]} 13. Bc4 {[%clk 0:02:47]}  Rd8 {[%clk 0:02:18]} 14. Ke2 {[%clk 0:02:47]}  Nc6 {[%clk 0:02:18]} 15. a4 {[%clk 0:02:40]}  a6 {[%clk 0:02:05]} 16. a5 {[%clk 0:02:37]}  Ba7 {[%clk 0:02:05]} 17. Rhd1 {[%clk 0:02:33]}  Bd7 {[%clk 0:02:04]} 18. Nd2 {[%clk 0:02:25]}  Rac8 {[%clk 0:01:55]} 19. Bb3 {[%clk 0:02:18]}  Ne7 {[%clk 0:01:51]} 20. Ne4 {[%clk 0:02:16]}  Bb5+ {[%clk 0:01:50]} 21. Ke1 {[%clk 0:02:17]}  Nd5 {[%clk 0:01:48]} 22. Bxd5 {[%clk 0:02:12]}  exd5 {[%clk 0:01:47]} 23. Ng3 {[%clk 0:02:12]}  d4 {[%clk 0:01:33]} 24. Bxd4 {[%clk 0:02:11]}  Bxd4 {[%clk 0:01:29]} 25. Rxd4 {[%clk 0:02:12]}  Rxd4 {[%clk 0:01:27]} 26. exd4 {[%clk 0:02:13]}  Kf8 {[%clk 0:01:22]} 27. Kd2 {[%clk 0:02:06]}  Rc4 {[%clk 0:01:11]} 28. Nf5 {[%clk 0:01:11]}  Rb4 {[%clk 0:00:38]} 29. Kc3 {[%clk 0:01:11]}  Rc4+ {[%clk 0:00:38]} 30. Kb3 {[%clk 0:01:12]}  g6 {[%clk 0:00:33]} 31. Nd6 {[%clk 0:01:12]}  Rxd4 {[%clk 0:00:33]} 32. Nxb5 {[%clk 0:01:13]}  axb5 {[%clk 0:00:33]} 33. Rc1 {[%clk 0:01:13]}  Ra4 {[%clk 0:00:31]} 34. Rc7 {[%clk 0:01:13]}  Rxa5 {[%clk 0:00:29]} 35. Rxb7 {[%clk 0:01:14]}  h5 {[%clk 0:00:24]} 36. g3 {[%clk 0:01:03]}  Kg7 {[%clk 0:00:24]} 37. Rb6 {[%clk 0:00:59]}  f6 {[%clk 0:00:24]} 38. h4 {[%clk 0:00:59]}  g5 {[%clk 0:00:22]} 39. Kc3 {[%clk 0:00:53]}  Kg6 {[%clk 0:00:20]} 40. hxg5 {[%clk 0:00:52]}  Kxg5 {[%clk 0:00:21]} 41. f3 {[%clk 0:00:49]}  f5 {[%clk 0:00:18]} 42. f4+ {[%clk 0:00:46]}  Kg4 {[%clk 0:00:18]} 43. Rg6+ {[%clk 0:00:47]}  Kf3 {[%clk 0:00:18]} 44. Rg5 {[%clk 0:00:48]}  h4 {[%clk 0:00:11]} 45. gxh4 {[%clk 0:00:48]}  Kxf4 {[%clk 0:00:11]} 46. Rg1 {[%clk 0:00:45]}  Ra4 {[%clk 0:00:10]} 47. h5 {[%clk 0:00:44]}  Rc4+ {[%clk 0:00:10]} 48. Kb3 {[%clk 0:00:43]}  Rc6 {[%clk 0:00:09]} 49. Kb4 {[%clk 0:00:39]}  Rh6 {[%clk 0:00:10]} 50. Rh1 {[%clk 0:00:39]}  Kg5 {[%clk 0:00:10]} 51. Kxb5 {[%clk 0:00:39]}  Rxh5 {[%clk 0:00:10]} 52. Rxh5+ {[%clk 0:00:27]}  Kxh5 {[%clk 0:00:11]} 53. Kc4 {[%clk 0:00:28]}  Kg4 {[%clk 0:00:11]} 54. b4 {[%clk 0:00:28]}  f4 {[%clk 0:00:12]} 55. Kd4 {[%clk 0:00:13]}  f3 {[%clk 0:00:11]} 56. b5 {[%clk 0:00:13]}  f2 {[%clk 0:00:11]} 0-1


[Site "https://www.chess.com"]

[Event "Titled Tuesday Blitz July 26 Early 2022"]
[White "Pakleza, Zbigniew"]
[Black "Hakobyan, Aram"]
[WhiteFideId "1119290"]
[BlackFideId "13306677"]
[WhiteElo "2467"]
[BlackElo "2557"]
[Result "1-0"]
[Round "06"]
[TimeControl "180+1"]
[Date "2022.07.26"]
[WhiteClock "0:00:23"]
[BlackClock "0:00:09"]

1. d4 {[%clk 0:03:00]}  c5 {[%clk 0:02:59]} 2. c3 {[%clk 0:03:01]}  Qc7 {[%clk 0:02:59]} 3. Nf3 {[%clk 0:03:00]}  Nf6 {[%clk 0:02:59]} 4. Bg5 {[%clk 0:03:00]}  Ne4 {[%clk 0:02:59]} 5. Bh4 {[%clk 0:03:01]}  cxd4 {[%clk 0:02:56]} 6. cxd4 {[%clk 0:03:00]}  e6 {[%clk 0:02:45]} 7. Nbd2 {[%clk 0:02:55]}  Nxd2 {[%clk 0:02:42]} 8. Qxd2 {[%clk 0:02:53]}  Nc6 {[%clk 0:02:43]} 9. a3 {[%clk 0:02:50]}  d5 {[%clk 0:02:41]} 10. e3 {[%clk 0:02:49]}  Bd6 {[%clk 0:02:40]} 11. Bd3 {[%clk 0:02:49]}  O-O {[%clk 0:02:41]} 12. O-O {[%clk 0:02:47]}  Bd7 {[%clk 0:02:41]} 13. Rfc1 {[%clk 0:02:43]}  Qb6 {[%clk 0:02:41]} 14. b4 {[%clk 0:02:34]}  Rfc8 {[%clk 0:02:38]} 15. Bg3 {[%clk 0:02:21]}  Bxg3 {[%clk 0:02:36]} 16. hxg3 {[%clk 0:02:22]}  Be8 {[%clk 0:02:29]} 17. Rc3 {[%clk 0:02:19]}  a5 {[%clk 0:02:23]} 18. b5 {[%clk 0:02:17]}  Ne7 {[%clk 0:02:24]} 19. Rac1 {[%clk 0:02:08]}  Rxc3 {[%clk 0:02:23]} 20. Rxc3 {[%clk 0:02:09]}  h6 {[%clk 0:02:00]} 21. Qc2 {[%clk 0:01:54]}  Qd6 {[%clk 0:01:33]} 22. a4 {[%clk 0:01:34]}  Bd7 {[%clk 0:01:17]} 23. Ne5 {[%clk 0:01:28]}  Rc8 {[%clk 0:01:18]} 24. b6 {[%clk 0:00:39]}  f6 {[%clk 0:00:15]} 25. Nxd7 {[%clk 0:00:38]}  Qxd7 {[%clk 0:00:16]} 26. Rc7 {[%clk 0:00:39]}  Rxc7 {[%clk 0:00:16]} 27. Qxc7 {[%clk 0:00:39]}  Qxc7 {[%clk 0:00:04]} 28. bxc7 {[%clk 0:00:40]}  Kf8 {[%clk 0:00:04]} 29. Bb5 {[%clk 0:00:40]}  e5 {[%clk 0:00:04]} 30. Bd7 {[%clk 0:00:38]}  exd4 {[%clk 0:00:04]} 31. exd4 {[%clk 0:00:38]}  b6 {[%clk 0:00:03]} 32. Kf1 {[%clk 0:00:38]}  g5 {[%clk 0:00:02]} 33. Ke2 {[%clk 0:00:38]}  h5 {[%clk 0:00:02]} 34. f4 {[%clk 0:00:31]}  g4 {[%clk 0:00:01]} 35. c8=Q+ {[%clk 0:00:29]}  Nxc8 {[%clk 0:00:02]} 36. Bxc8 {[%clk 0:00:30]}  Ke7 {[%clk 0:00:02]} 37. Bf5 {[%clk 0:00:29]}  Kf7 {[%clk 0:00:03]} 38. Kd2 {[%clk 0:00:28]}  Ke7 {[%clk 0:00:02]} 39. Bg6 {[%clk 0:00:27]}  Ke6 {[%clk 0:00:03]} 40. Bxh5 {[%clk 0:00:27]}  f5 {[%clk 0:00:04]} 41. Be8 {[%clk 0:00:26]}  Ke7 {[%clk 0:00:03]} 42. Bc6 {[%clk 0:00:24]}  Ke6 {[%clk 0:00:04]} 43. Bb7 {[%clk 0:00:25]}  Kd6 {[%clk 0:00:02]} 44. Bc8 {[%clk 0:00:25]}  b5 {[%clk 0:00:02]} 45. axb5 {[%clk 0:00:25]}  a4 {[%clk 0:00:03]} 46. Bxf5 {[%clk 0:00:25]}  a3 {[%clk 0:00:04]} 47. Bb1 {[%clk 0:00:25]}  a2 {[%clk 0:00:05]} 48. Bxa2 {[%clk 0:00:25]}  Kc7 {[%clk 0:00:05]} 49. Bxd5 {[%clk 0:00:25]}  Kb6 {[%clk 0:00:06]} 50. Bc6 {[%clk 0:00:25]}  Ka5 {[%clk 0:00:07]} 51. f5 {[%clk 0:00:25]}  Ka4 {[%clk 0:00:07]} 52. f6 {[%clk 0:00:26]}  Kb4 {[%clk 0:00:08]} 53. f7 {[%clk 0:00:26]}  Kc4 {[%clk 0:00:09]} 54. f8=Q {[%clk 0:00:26]}  Kb3 {[%clk 0:00:08]} 55. b6 {[%clk 0:00:25]}  Kc4 {[%clk 0:00:08]} 56. b7 {[%clk 0:00:25]}  Kb3 {[%clk 0:00:08]} 57. b8=Q+ {[%clk 0:00:25]}  Ka2 {[%clk 0:00:09]} 58. Bd5+ {[%clk 0:00:22]}  Ka1 {[%clk 0:00:09]} 59. Qa3# {[%clk 0:00:23]} 1-0


[Site "https://www.chess.com"]

[Event "Titled Tuesday Blitz July 26 Early 2022"]
[White "Paravyan, David"]
[Black "Papasimakopoulos, Alexandros"]
[WhiteFideId "4194985"]
[BlackFideId "4244125"]
[WhiteElo "2569"]
[BlackElo "2340"]
[Result "0-1"]
[Round "06"]
[TimeControl "180+1"]
[Date "2022.07.26"]
[WhiteClock "0:00:24"]
[BlackClock "0:00:27"]

1. e4 {[%clk 0:03:00]}  e6 {[%clk 0:03:00]} 2. d4 {[%clk 0:03:00]}  d5 {[%clk 0:03:00]} 3. Nc3 {[%clk 0:03:00]}  Bb4 {[%clk 0:02:55]} 4. e5 {[%clk 0:03:00]}  b6 {[%clk 0:02:56]} 5. Qg4 {[%clk 0:02:58]}  Bf8 {[%clk 0:02:56]} 6. h4 {[%clk 0:02:54]}  Ba6 {[%clk 0:02:55]} 7. Bxa6 {[%clk 0:02:54]}  Nxa6 {[%clk 0:02:56]} 8. h5 {[%clk 0:02:54]}  Nb4 {[%clk 0:02:56]} 9. Qe2 {[%clk 0:02:54]}  c5 {[%clk 0:02:51]} 10. Nf3 {[%clk 0:02:54]}  h6 {[%clk 0:02:51]} 11. Be3 {[%clk 0:02:49]}  Nc6 {[%clk 0:02:44]} 12. Rd1 {[%clk 0:02:18]}  cxd4 {[%clk 0:02:27]} 13. Nxd4 {[%clk 0:02:19]}  Nxd4 {[%clk 0:02:24]} 14. Bxd4 {[%clk 0:02:20]}  Ne7 {[%clk 0:02:16]} 15. O-O {[%clk 0:02:08]}  Nf5 {[%clk 0:02:12]} 16. Be3 {[%clk 0:02:02]}  Bc5 {[%clk 0:02:08]} 17. Bxc5 {[%clk 0:01:59]}  bxc5 {[%clk 0:02:08]} 18. Qb5+ {[%clk 0:01:59]}  Qd7 {[%clk 0:02:04]} 19. Qxc5 {[%clk 0:01:59]}  Rc8 {[%clk 0:02:03]} 20. Qa3 {[%clk 0:01:59]}  Qe7 {[%clk 0:01:58]} 21. Qa4+ {[%clk 0:01:54]}  Qd7 {[%clk 0:01:58]} 22. Qb4 {[%clk 0:01:51]}  Qe7 {[%clk 0:01:48]} 23. Qa4+ {[%clk 0:01:47]}  Qd7 {[%clk 0:01:48]} 24. Qf4 {[%clk 0:01:39]}  O-O {[%clk 0:01:44]} 25. g4 {[%clk 0:01:39]}  Ne7 {[%clk 0:01:44]} 26. Rd3 {[%clk 0:01:33]}  Qb7 {[%clk 0:01:43]} 27. g5 {[%clk 0:01:28]}  Rc4 {[%clk 0:01:43]} 28. Qh2 {[%clk 0:01:20]}  hxg5 {[%clk 0:01:35]} 29. h6 {[%clk 0:01:21]}  Nf5 {[%clk 0:01:25]} 30. hxg7 {[%clk 0:01:11]}  Kxg7 {[%clk 0:01:26]} 31. Rh3 {[%clk 0:01:12]}  Rh4 {[%clk 0:01:22]} 32. Rxh4 {[%clk 0:01:10]}  Nxh4 {[%clk 0:01:22]} 33. Qg3 {[%clk 0:01:09]}  Kh6 {[%clk 0:01:15]} 34. f4 {[%clk 0:00:56]}  Rg8 {[%clk 0:01:13]} 35. Kh2 {[%clk 0:00:47]}  Nf5 {[%clk 0:01:01]} 36. Qh3+ {[%clk 0:00:42]}  Kg7 {[%clk 0:00:58]} 37. Rg1 {[%clk 0:00:42]}  Kf8 {[%clk 0:00:56]} 38. Rxg5 {[%clk 0:00:39]}  Rxg5 {[%clk 0:00:54]} 39. fxg5 {[%clk 0:00:40]}  Qxb2 {[%clk 0:00:54]} 40. Qd3 {[%clk 0:00:37]}  Qc1 {[%clk 0:00:50]} 41. Nxd5 {[%clk 0:00:34]}  Qxg5 {[%clk 0:00:43]} 42. Nf6 {[%clk 0:00:31]}  Qf4+ {[%clk 0:00:38]} 43. Kg2 {[%clk 0:00:32]}  Ne3+ {[%clk 0:00:35]} 44. Kh3 {[%clk 0:00:25]}  Qf3+ {[%clk 0:00:32]} 45. Kh4 {[%clk 0:00:25]}  Ng2+ {[%clk 0:00:28]} 46. Kg5 {[%clk 0:00:24]}  Qf4+ {[%clk 0:00:27]} 47. Kh5 {[%clk 0:00:24]}  Qh4# {[%clk 0:00:27]} 0-1


[Site "https://www.chess.com"]

[Event "Titled Tuesday Blitz July 26 Early 2022"]
[White "Pfreundt, Jakob"]
[Black "Leenhouts, Koen"]
[WhiteFideId "12918156"]
[BlackFideId "1008439"]
[WhiteElo "2345"]
[BlackElo "2409"]
[Result "1-0"]
[Round "06"]
[TimeControl "180+1"]
[Date "2022.07.27"]
[WhiteClock "0:00:12"]
[BlackClock "0:00:01"]

1. Nf3 {[%clk 0:03:00]}  Nf6 {[%clk 0:02:58]} 2. d4 {[%clk 0:02:59]}  d5 {[%clk 0:02:58]} 3. c4 {[%clk 0:02:58]}  c6 {[%clk 0:02:59]} 4. Nbd2 {[%clk 0:02:58]}  Bf5 {[%clk 0:02:55]} 5. Nh4 {[%clk 0:02:58]}  Be4 {[%clk 0:02:54]} 6. e3 {[%clk 0:02:53]}  h6 {[%clk 0:02:46]} 7. Nxe4 {[%clk 0:02:52]}  dxe4 {[%clk 0:02:45]} 8. g3 {[%clk 0:02:48]}  g5 {[%clk 0:02:40]} 9. Ng2 {[%clk 0:02:48]}  e6 {[%clk 0:02:36]} 10. h4 {[%clk 0:02:48]}  Rg8 {[%clk 0:02:31]} 11. Bd2 {[%clk 0:02:42]}  Nbd7 {[%clk 0:02:30]} 12. hxg5 {[%clk 0:02:41]}  hxg5 {[%clk 0:02:29]} 13. Qb3 {[%clk 0:02:41]}  Qc7 {[%clk 0:02:26]} 14. Be2 {[%clk 0:02:32]}  O-O-O {[%clk 0:02:26]} 15. O-O-O {[%clk 0:02:31]}  c5 {[%clk 0:02:12]} 16. Kb1 {[%clk 0:02:28]}  Be7 {[%clk 0:02:08]} 17. Bc3 {[%clk 0:02:26]}  Kb8 {[%clk 0:02:07]} 18. Ne1 {[%clk 0:02:18]}  Qb6 {[%clk 0:01:54]} 19. Qxb6 {[%clk 0:02:09]}  axb6 {[%clk 0:01:55]} 20. Nc2 {[%clk 0:02:08]}  Rh8 {[%clk 0:01:50]} 21. dxc5 {[%clk 0:02:02]}  Nxc5 {[%clk 0:01:33]} 22. Rxd8+ {[%clk 0:01:52]}  Rxd8 {[%clk 0:01:30]} 23. Nd4 {[%clk 0:01:24]}  Nd3 {[%clk 0:01:06]} 24. Rh2 {[%clk 0:01:23]}  Bb4 {[%clk 0:00:56]} 25. Nxe6 {[%clk 0:00:41]}  fxe6 {[%clk 0:00:41]} 26. Bxf6 {[%clk 0:00:41]}  Rf8 {[%clk 0:00:32]} 27. Bxd3 {[%clk 0:00:41]}  exd3 {[%clk 0:00:21]} 28. Bxg5 {[%clk 0:00:42]}  e5 {[%clk 0:00:20]} 29. a3 {[%clk 0:00:37]}  Bc5 {[%clk 0:00:20]} 30. b4 {[%clk 0:00:36]}  Bd6 {[%clk 0:00:20]} 31. Kb2 {[%clk 0:00:32]}  Rf5 {[%clk 0:00:20]} 32. f4 {[%clk 0:00:26]}  e4 {[%clk 0:00:21]} 33. g4 {[%clk 0:00:20]}  Rf8 {[%clk 0:00:19]} 34. Kc3 {[%clk 0:00:18]}  Re8 {[%clk 0:00:19]} 35. Rh6 {[%clk 0:00:18]}  Bf8 {[%clk 0:00:18]} 36. Rh7 {[%clk 0:00:16]}  Bd6 {[%clk 0:00:16]} 37. Bf6 {[%clk 0:00:15]}  Rf8 {[%clk 0:00:12]} 38. g5 {[%clk 0:00:15]}  Kc8 {[%clk 0:00:09]} 39. Rh8 {[%clk 0:00:15]}  Rxh8 {[%clk 0:00:08]} 40. Bxh8 {[%clk 0:00:16]}  Kd7 {[%clk 0:00:08]} 41. f5 {[%clk 0:00:15]}  Ke7 {[%clk 0:00:08]} 42. g6 {[%clk 0:00:15]}  Kf8 {[%clk 0:00:07]} 43. Bd4 {[%clk 0:00:13]}  Bg3 {[%clk 0:00:06]} 44. Kd2 {[%clk 0:00:13]}  Bh4 {[%clk 0:00:03]} 45. f6 {[%clk 0:00:13]}  Bg5 {[%clk 0:00:01]} 46. f7 {[%clk 0:00:12]} 1-0


[Site "https://www.chess.com"]

[Event "Titled Tuesday Blitz July 26 Early 2022"]
[White "Pichot, Alan"]
[Black "Martinez Alcantara, Jose Eduardo"]
[WhiteFideId "110973"]
[BlackFideId "3805662"]
[WhiteElo "2579"]
[BlackElo "2703"]
[Result "1/2-1/2"]
[Round "06"]
[TimeControl "180+1"]
[Date "2022.07.26"]
[WhiteClock "0:00:12"]
[BlackClock "0:00:09"]

1. Nf3 {[%clk 0:02:59]}  c5 {[%clk 0:02:59]} 2. e4 {[%clk 0:02:56]}  d6 {[%clk 0:02:58]} 3. Bb5+ {[%clk 0:02:54]}  Nd7 {[%clk 0:02:57]} 4. d4 {[%clk 0:02:52]}  cxd4 {[%clk 0:02:58]} 5. Nxd4 {[%clk 0:02:53]}  Nf6 {[%clk 0:02:54]} 6. O-O {[%clk 0:02:53]}  e6 {[%clk 0:02:52]} 7. Re1 {[%clk 0:02:53]}  Be7 {[%clk 0:02:53]} 8. Bf1 {[%clk 0:02:53]}  O-O {[%clk 0:02:52]} 9. c4 {[%clk 0:02:53]}  Qc7 {[%clk 0:02:52]} 10. Nc3 {[%clk 0:02:53]}  a6 {[%clk 0:02:52]} 11. Bg5 {[%clk 0:02:33]}  b6 {[%clk 0:02:50]} 12. Rc1 {[%clk 0:02:32]}  Bb7 {[%clk 0:02:49]} 13. Qd2 {[%clk 0:02:29]}  Rac8 {[%clk 0:02:46]} 14. f3 {[%clk 0:02:25]}  Qb8 {[%clk 0:02:43]} 15. b3 {[%clk 0:02:23]}  Rfe8 {[%clk 0:02:41]} 16. Be3 {[%clk 0:02:16]}  Bd8 {[%clk 0:02:40]} 17. Kh1 {[%clk 0:02:16]}  Bc7 {[%clk 0:02:41]} 18. Bg1 {[%clk 0:02:17]}  d5 {[%clk 0:02:31]} 19. exd5 {[%clk 0:02:15]}  Bf4 {[%clk 0:02:28]} 20. Be3 {[%clk 0:02:07]}  Bxh2 {[%clk 0:02:25]} 21. dxe6 {[%clk 0:02:06]}  fxe6 {[%clk 0:02:26]} 22. Nde2 {[%clk 0:01:57]}  Rcd8 {[%clk 0:02:10]} 23. Bf4 {[%clk 0:01:52]}  Ne5 {[%clk 0:01:37]} 24. Nd4 {[%clk 0:01:38]}  Nxf3 {[%clk 0:00:29]} 25. Bxb8 {[%clk 0:01:32]}  Nxd2 {[%clk 0:00:30]} 26. Kxh2 {[%clk 0:01:06]}  Nxf1+ {[%clk 0:00:22]} 27. Rxf1 {[%clk 0:01:07]}  Rxb8 {[%clk 0:00:22]} 28. Rce1 {[%clk 0:01:04]}  Kf7 {[%clk 0:00:20]} 29. Na4 {[%clk 0:00:49]}  Ba8 {[%clk 0:00:15]} 30. c5 {[%clk 0:00:49]}  bxc5 {[%clk 0:00:12]} 31. Nxc5 {[%clk 0:00:50]}  Rb6 {[%clk 0:00:06]} 32. Rd1 {[%clk 0:00:26]}  h6 {[%clk 0:00:04]} 33. Nd7 {[%clk 0:00:24]}  Rd6 {[%clk 0:00:02]} 34. Ne5+ {[%clk 0:00:23]}  Kg8 {[%clk 0:00:03]} 35. Ne2 {[%clk 0:00:15]}  Rxd1 {[%clk 0:00:03]} 36. Rxd1 {[%clk 0:00:16]}  Bd5 {[%clk 0:00:03]} 37. Nf4 {[%clk 0:00:16]}  Rc8 {[%clk 0:00:04]} 38. Rd2 {[%clk 0:00:15]}  Ne4 {[%clk 0:00:04]} 39. Nxd5 {[%clk 0:00:14]}  exd5 {[%clk 0:00:02]} 40. Rxd5 {[%clk 0:00:15]}  Rc2 {[%clk 0:00:02]} 41. Ra5 {[%clk 0:00:13]}  Nc3 {[%clk 0:00:03]} 42. Rc5 {[%clk 0:00:12]}  Rc1 {[%clk 0:00:01]} 43. Nd3 {[%clk 0:00:12]}  Rc2 {[%clk 0:00:02]} 44. Nb4 {[%clk 0:00:11]}  Rc1 {[%clk 0:00:02]} 45. Nxa6 {[%clk 0:00:10]}  Nxa2 {[%clk 0:00:03]} 46. Rxc1 {[%clk 0:00:10]}  Nxc1 {[%clk 0:00:04]} 47. b4 {[%clk 0:00:11]}  Nb3 {[%clk 0:00:04]} 48. b5 {[%clk 0:00:10]}  Na5 {[%clk 0:00:04]} 49. Nc5 {[%clk 0:00:10]}  Kf7 {[%clk 0:00:04]} 50. b6 {[%clk 0:00:10]}  Nc6 {[%clk 0:00:04]} 51. Na6 {[%clk 0:00:09]}  Na5 {[%clk 0:00:03]} 52. Nc5 {[%clk 0:00:09]}  Nc6 {[%clk 0:00:04]} 53. b7 {[%clk 0:00:07]}  Nb8 {[%clk 0:00:04]} 54. Kg3 {[%clk 0:00:08]}  Ke7 {[%clk 0:00:04]} 55. Kg4 {[%clk 0:00:08]}  g6 {[%clk 0:00:04]} 56. Kf4 {[%clk 0:00:08]}  Kd6 {[%clk 0:00:05]} 57. Ne4+ {[%clk 0:00:09]}  Kc6 {[%clk 0:00:05]} 58. Ke5 {[%clk 0:00:09]}  Kxb7 {[%clk 0:00:05]} 59. Kf6 {[%clk 0:00:10]}  g5 {[%clk 0:00:06]} 60. Kg6 {[%clk 0:00:10]}  Nc6 {[%clk 0:00:06]} 61. Kxh6 {[%clk 0:00:10]}  g4 {[%clk 0:00:07]} 62. Kg5 {[%clk 0:00:11]}  Kc7 {[%clk 0:00:07]} 63. Kxg4 {[%clk 0:00:11]}  Kd7 {[%clk 0:00:08]} 64. Kf5 {[%clk 0:00:12]}  Ke7 {[%clk 0:00:09]} 65. g4 {[%clk 0:00:12]} 1/2-1/2


[Site "https://www.chess.com"]

[Event "Titled Tuesday Blitz July 26 Early 2022"]
[White "Rodchenkov, Sergey D."]
[Black "Ljukin, Sergei"]
[WhiteFideId "4168712"]
[BlackFideId "14102200"]
[WhiteElo "2293"]
[BlackElo "2312"]
[Result "1-0"]
[Round "06"]
[TimeControl "180+1"]
[Date "2022.07.27"]
[WhiteClock "0:00:10"]
[BlackClock "0:00:01"]

1. e4 {[%clk 0:03:00]}  e6 {[%clk 0:02:59]} 2. d4 {[%clk 0:03:00]}  d5 {[%clk 0:02:59]} 3. Nc3 {[%clk 0:03:01]}  Bb4 {[%clk 0:02:58]} 4. e5 {[%clk 0:03:02]}  Ne7 {[%clk 0:02:59]} 5. a3 {[%clk 0:03:02]}  Bxc3+ {[%clk 0:02:59]} 6. bxc3 {[%clk 0:03:03]}  c5 {[%clk 0:02:59]} 7. Qg4 {[%clk 0:03:04]}  Qc7 {[%clk 0:03:00]} 8. Qxg7 {[%clk 0:03:04]}  Rg8 {[%clk 0:03:00]} 9. Qxh7 {[%clk 0:03:04]}  cxd4 {[%clk 0:03:01]} 10. Ne2 {[%clk 0:03:05]}  Nbc6 {[%clk 0:03:02]} 11. f4 {[%clk 0:03:05]}  Bd7 {[%clk 0:03:02]} 12. Qd3 {[%clk 0:03:01]}  dxc3 {[%clk 0:03:02]} 13. h4 {[%clk 0:03:01]}  O-O-O {[%clk 0:03:00]} 14. h5 {[%clk 0:03:01]}  Nf5 {[%clk 0:02:57]} 15. Rg1 {[%clk 0:02:57]}  Nh6 {[%clk 0:02:35]} 16. Rb1 {[%clk 0:02:54]}  Ng4 {[%clk 0:01:38]} 17. Nd4 {[%clk 0:02:40]}  Nxd4 {[%clk 0:01:33]} 18. Qxd4 {[%clk 0:02:40]}  Kb8 {[%clk 0:01:23]} 19. Be2 {[%clk 0:02:33]}  Rc8 {[%clk 0:01:18]} 20. a4 {[%clk 0:01:56]}  Qa5 {[%clk 0:01:14]} 21. Qb4 {[%clk 0:01:24]}  Qxb4 {[%clk 0:00:59]} 22. Rxb4 {[%clk 0:01:25]}  a5 {[%clk 0:00:59]} 23. Rb1 {[%clk 0:00:55]}  Bxa4 {[%clk 0:00:53]} 24. Bd3 {[%clk 0:00:56]}  Rh8 {[%clk 0:00:43]} 25. Rh1 {[%clk 0:00:51]}  Ka7 {[%clk 0:00:36]} 26. Ke2 {[%clk 0:00:42]}  d4 {[%clk 0:00:20]} 27. Rh4 {[%clk 0:00:31]}  Rcg8 {[%clk 0:00:10]} 28. Ra1 {[%clk 0:00:30]}  b5 {[%clk 0:00:08]} 29. Kf3 {[%clk 0:00:31]}  Nh6 {[%clk 0:00:05]} 30. g4 {[%clk 0:00:31]}  Kb6 {[%clk 0:00:04]} 31. g5 {[%clk 0:00:20]}  Nf5 {[%clk 0:00:03]} 32. Bxf5 {[%clk 0:00:20]}  exf5 {[%clk 0:00:04]} 33. h6 {[%clk 0:00:21]}  Bxc2 {[%clk 0:00:03]} 34. Kf2 {[%clk 0:00:14]}  Be4 {[%clk 0:00:03]} 35. Ba3 {[%clk 0:00:10]}  b4 {[%clk 0:00:03]} 36. Bc1 {[%clk 0:00:10]}  d3 {[%clk 0:00:03]} 37. Be3+ {[%clk 0:00:10]}  Kb5 {[%clk 0:00:03]} 38. e6 {[%clk 0:00:11]}  fxe6 {[%clk 0:00:03]} 39. Rg1 {[%clk 0:00:11]}  Rg6 {[%clk 0:00:02]} 40. h7 {[%clk 0:00:09]}  b3 {[%clk 0:00:02]} 41. Bd4 {[%clk 0:00:10]}  Rxh7 {[%clk 0:00:01]} 42. Rxh7 {[%clk 0:00:10]}  c2 {[%clk 0:00:01]} 43. Rc7 {[%clk 0:00:10]} 1-0


[Site "https://www.chess.com"]